bitfinex/quotes_ETHUSD_20220311
["timestamp","ask_amount","ask_price","bid_price","bid_amount"]
[1647039283365,0.97009,2578.1,2577.0,0.1938]
[1647039283566,0.97009,2578.1,2577.2,0.9700747]
[1647039283768,0.97009,2578.1,2577.4,0.97007]
[1647039283968,0.97009,2578.1,2577.6,0.07346433]
[1647039284369,0.97009,2578.1,2577.4,0.06891709]
[1647039285014,0.97009,2578.1,2577.5,0.97009]
[1647039285015,0.97009,2578.0,2577.5,0.97009]
[1647039285212,0.97009,2578.0,2577.6,0.07011259]
[1647039285414,1.27009,2578.0,2577.6,0.07011259]
[1647039285615,0.97009,2578.0,2577.6,0.00420724]
[1647039286112,0.97009,2578.0,2577.3,2.01933621]
[1647039286512,1.34893707,2578.0,2577.7,0.00421137]
[1647039287313,1.34893707,2578.0,2577.4,0.97014]
[1647039287518,0.97009,2578.0,2577.7,0.00421134]
[1647039288572,0.97009,2578.0,2577.3,0.97019]
[1647039288762,0.97009,2578.0,2577.0,0.07024117]
[1647039289162,0.97009,2578.0,2577.7,0.00435325]
[1647039289763,0.97009,2578.0,2577.0,0.07024117]
[1647039290166,0.97009,2578.0,2577.1,0.9701422]
[1647039290364,0.06059849,2577.9,2577.7,0.00435278]
[1647039290570,1.03074849,2577.9,2577.7,0.00435278]
[1647039291165,1.03074849,2577.9,2577.4,0.97016]
[1647039291566,1.03074849,2577.9,2577.7,0.00435281]
[1647039292418,2.00091849,2577.9,2577.4,0.97016]
[1647039292618,2.00091849,2577.9,2577.7,0.0042059]
[1647039293421,2.00091849,2577.9,2577.3,0.97019]
[1647039293820,2.00091849,2577.9,2577.7,0.00420119]
[1647039294720,2.00091849,2577.9,2577.2,0.07798905]
[1647039294920,2.00091849,2577.9,2577.7,0.00420119]
[1647039295921,2.00091849,2577.9,2577.3,0.9702]
[1647039296366,2.00091849,2577.9,2577.7,0.00434492]
[1647039296766,1.88346676,2577.9,2577.7,0.00434492]
[1647039297066,1.88346676,2577.9,2577.3,0.9702]
[1647039297267,1.88346676,2577.9,2577.7,0.00435023]
[1647039298473,1.94057,2577.8,2577.7,0.00435023]
[1647039299474,1.94052,2577.7,2577.1,0.26446286]
[1647039299673,1.94052,2577.7,2577.6,0.00420661]
[1647039300524,1.94052,2577.7,2577.1,0.26446286]
[1647039300724,1.94052,2577.7,2577.2,0.07445548]
[1647039301123,1.94052,2577.7,2577.5,0.00438159]
[1647039301724,2.83892,2577.7,2577.1,0.1938]
[1647039302324,2.83892,2577.7,2577.5,0.00438163]
[1647039302928,2.83892,2577.7,2577.1,0.1938]
[1647039303330,2.83892,2577.7,2577.5,0.00452528]
[1647039304268,2.83892,2577.7,2577.1,0.1938]
[1647039304468,2.83892,2577.7,2577.5,0.00433827]
[1647039304769,1.94052,2577.7,2577.5,0.00433827]
[1647039304968,0.8984,2577.6,2577.5,0.00433827]
[1647039305368,0.8984,2577.6,2577.1,12.30641474]
[1647039305569,2.91115,2577.5,2577.1,12.11261474]
[1647039305769,1.94077,2577.5,2577.1,12.11261474]
[1647039307070,1.94077,2577.5,2577.2,0.0042088]
[1647039307314,2.1432913,2577.5,2577.2,0.0042088]
[1647039307519,0.97037,2577.4,2577.2,0.0042088]
[1647039307817,0.97037,2577.4,2577.3,2.571804]
[1647039310119,1.94065,2577.6,2577.3,2.571804]
[1647039311766,1.94065,2577.6,2577.3,2.57592114]
[1647039312469,1.94065,2577.6,2577.3,2.571804]
[1647039312968,1.94065,2577.6,2577.3,2.57592114]
[1647039313768,1.94065,2577.6,2577.3,2.571804]
[1647039313974,1.94065,2577.6,2577.3,2.57587195]
[1647039315015,1.94065,2577.6,2577.3,2.571804]
[1647039315418,1.94065,2577.6,2577.3,2.57587195]
[1647039316118,0.97028,2577.6,2577.3,10.17715916]
[1647039316318,0.97028,2577.6,2577.3,10.17309121]
[1647039316521,0.97028,2577.6,2577.3,10.17717454]
[1647039317019,0.97037,2577.6,2577.3,10.17717454]
[1647039317421,0.97037,2577.6,2577.3,10.17309121]
[1647039317621,0.97028,2577.6,2577.3,10.17717449]
[1647039318666,0.97028,2577.6,2577.3,10.17309121]
[1647039318866,0.97028,2577.6,2577.3,10.17717449]
[1647039319071,1.94065,2577.6,2577.3,10.17717449]
[1647039319868,1.94065,2577.6,2577.3,10.17309121]
[1647039320069,1.94065,2577.6,2577.3,10.17716946]
[1647039321170,1.94065,2577.6,2577.3,10.17309121]
[1647039321572,1.94065,2577.6,2577.3,10.17730366]
[1647039322172,1.94065,2577.6,2577.3,10.17309121]
[1647039322419,1.94065,2577.6,2577.3,10.17730366]
[1647039322922,0.06078666,2577.4,2577.3,10.17730366]
[1647039323520,0.06078666,2577.4,2577.3,10.17309121]
[1647039328279,0.06078666,2577.4,2577.3,11.76128356]
[1647039329679,1.99996909,2577.6,2577.3,11.76128356]
[1647039329921,0.05465773,2577.5,2577.4,1.58819235]
[1647039330521,0.05465773,2577.6,2577.4,1.95351885]
[1647039330721,0.05465773,2577.6,2577.3,5.85360172]
[1647039330722,0.04181997,2577.5,2577.3,5.85360172]
[1647039330922,0.04181997,2577.5,2577.3,0.00428426]
[1647039330923,1.00379465,2577.5,2577.3,0.00428426]
[1647039331122,0.04137034,2577.4,2577.3,0.00428426]
[1647039331325,1.46641234,2577.4,2577.3,0.00428426]
[1647039331525,0.51237034,2577.4,2577.3,0.00428426]
[1647039331721,0.00147242,2577.2,2576.9,0.01]
[1647039331930,1.89794861,2577.1,2576.9,0.01]
[1647039332123,1.47738783,2577.0,2576.9,0.01]
[1647039332328,2.4205106,2577.0,2576.9,0.01]
[1647039332526,2.37007138,2577.0,2576.9,0.01]
[1647039333329,4.19606088,2577.0,2576.9,0.01]
[1647039333581,2.77030837,2577.0,2576.9,0.01]
[1647039333972,4.19606088,2577.0,2576.9,0.01]
[1647039334373,2.77030837,2577.0,2576.9,0.01]
[1647039338624,2.77030837,2577.0,2576.8,0.00434151]
[1647039338826,0.9707839,2576.6,2575.8,0.07095418]
[1647039339024,1.13635939,2576.6,2575.9,1.58883738]
[1647039340026,0.97078,2576.5,2575.9,1.58883738]
[1647039340225,0.97076,2576.4,2575.9,1.58883738]
[1647039340625,0.97076,2576.4,2576.1,0.00143731]
[1647039341472,0.97076,2576.4,2575.9,1.58883738]
[1647039341872,0.97076,2576.4,2576.1,0.00438741]
[1647039342073,1.94153,2576.4,2576.1,0.00438741]
[1647039342681,1.94153,2576.4,2575.8,0.07095418]
[1647039342983,1.94153,2576.4,2576.1,0.00438741]
[1647039343981,1.94153,2576.4,2575.8,0.97072]
[1647039344180,1.94153,2576.4,2576.1,0.00466301]
[1647039345025,1.94153,2576.4,2576.0,0.08526795]
[1647039345422,1.94153,2576.4,2576.1,0.00466301]
[1647039345621,1.94153,2576.4,2576.1,0.087947]
[1647039346221,5.20087549,2576.6,2576.1,0.087947]
[1647039346423,4.04867549,2576.6,2576.1,0.08328399]
[1647039346723,0.471,2576.8,2576.1,0.08328399]
[1647039346724,8.0243,2576.9,2576.2,1.58868534]
[1647039346924,1.5008,2576.9,2576.3,0.08626609]
[1647039347124,1.2008,2576.9,2576.3,0.08626609]
[1647039347530,2.17133,2576.9,2576.4,0.97053]
[1647039347727,0.97053,2576.9,2576.4,0.97053]
[1647039348129,0.97051,2576.9,2576.4,0.97053]
[1647039348329,1.27051,2576.9,2576.4,0.97053]
[1647039348573,1.27051,2576.9,2576.3,0.08626609]
[1647039349373,1.27051,2576.9,2576.4,0.97054]
[1647039349574,1.27051,2576.9,2575.9,1.8714446]
[1647039349779,2.91175,2576.5,2576.0,1.65192971]
[1647039349977,2.91175,2576.5,2576.1,1.58858959]
[1647039350180,2.91175,2576.5,2576.2,0.06346676]
[1647039350378,2.91175,2576.5,2575.9,1.0]
[1647039350677,2.91175,2576.5,2576.1,0.08094305]
[1647039350880,2.91175,2576.5,2575.9,0.06923199]
[1647039351080,0.97054,2576.3,2576.0,1.58867879]
[1647039351278,0.97054,2576.3,2576.1,0.07186521]
[1647039351678,0.97054,2576.3,2575.9,0.07638356]
[1647039351882,0.97054,2576.3,2576.2,0.00466572]
[1647039352329,0.97054,2576.3,2575.7,0.08062148]
[1647039352535,0.97054,2576.3,2575.8,1.58865392]
[1647039352737,0.97054,2576.3,2576.1,0.00466576]
[1647039353633,0.97054,2576.3,2575.8,0.08043263]
[1647039353835,0.97054,2576.3,2576.1,0.00466579]
[1647039354835,0.97054,2576.3,2575.8,0.07700279]
[1647039355039,0.97054,2576.3,2576.1,0.00466579]
[1647039356081,0.97054,2576.3,2576.2,1.58863567]
[1647039356271,2.91175,2576.5,2576.3,0.72397057]
[1647039357475,2.91175,2576.5,2576.3,0.72847877]
[1647039358276,2.91175,2576.5,2576.3,0.72397057]
[1647039358678,2.91175,2576.5,2576.3,0.72847877]
[1647039359681,2.91175,2576.5,2576.3,0.72397057]
[1647039360128,2.91175,2576.5,2576.3,0.72863623]
[1647039360930,2.91175,2576.5,2576.3,0.72397057]
[1647039361129,2.91175,2576.5,2576.3,0.72863623]
[1647039361932,2.91175,2576.5,2576.3,0.72397057]
[1647039362334,2.91175,2576.5,2576.3,0.72863623]
[1647039363039,2.91175,2576.5,2576.3,0.72397057]
[1647039363438,2.91175,2576.5,2576.3,0.72849626]
[1647039364481,2.91175,2576.5,2576.3,0.72822983]
[1647039365684,2.91175,2576.5,2576.3,0.72397057]
[1647039365882,2.91175,2576.5,2576.3,0.72822983]
[1647039366384,3.88243,2576.5,2576.3,0.72822983]
[1647039366786,3.88243,2576.5,2576.3,0.72397057]
[1647039366983,3.88243,2576.5,2576.3,0.72814063]
[1647039367184,5.82392,2576.5,2576.1,0.06616908]
[1647039367428,0.97067,2576.3,2575.9,0.07060781]
[1647039367628,0.97067,2576.3,2576.0,1.58874796]
[1647039368231,0.97067,2576.3,2576.1,1.58874796]
[1647039368429,0.97067,2576.3,2575.6,0.07400636]
[1647039368630,0.97067,2576.3,2575.7,1.58870773]
[1647039368830,0.97067,2576.3,2575.8,0.06537999]
[1647039369130,0.97067,2576.3,2575.9,1.58870773]
[1647039371082,0.97067,2576.3,2576.0,0.0017125]
[1647039371471,5.57854143,2576.2,2576.0,0.0017125]
[1647039371673,5.57854143,2576.2,2575.9,1.58870773]
[1647039371877,5.57854143,2576.2,2576.0,0.00466582]
[1647039372078,5.57854143,2576.2,2576.1,1.58870773]
[1647039372476,5.57854143,2576.2,2576.1,1.33870773]
[1647039372878,5.57854143,2576.2,2575.8,0.06537999]
[1647039373078,5.57854143,2576.2,2576.0,0.00466582]
[1647039373880,3.70772253,2576.1,2575.5,2.1654089]
[1647039374081,3.70772253,2576.1,2575.5,2.4542487]
[1647039374281,3.70772253,2576.1,2576.0,0.00466585]
[1647039375223,3.70772253,2576.1,2575.5,0.9692089]
[1647039375426,4.67852253,2576.1,2575.9,0.0045784]
[1647039375623,3.6534419,2576.0,2575.9,0.0045784]
[1647039376330,1.95874526,2576.0,2575.6,0.07542024]
[1647039376728,1.94154,2575.9,2575.6,0.07542024]
[1647039376929,5.6163636,2575.9,2575.6,0.07542024]
[1647039377131,5.6163636,2575.9,2575.6,1.04611134]
[1647039377330,5.6163636,2575.9,2575.6,0.07542024]
[1647039378975,5.6163636,2575.9,2575.6,0.0799961]
[1647039380175,5.6163636,2575.9,2575.6,0.07988425]
[1647039381179,5.6163636,2575.9,2575.6,0.07542024]
[1647039381490,5.6163636,2575.9,2575.6,0.07988425]
[1647039382322,5.51941002,2575.9,2575.6,0.07988425]
[1647039382527,5.51941002,2575.9,2575.6,0.07542024]
[1647039382730,5.51941002,2575.9,2575.6,0.07988425]
[1647039383131,5.51941002,2575.9,2575.6,0.00446401]
[1647039383528,5.51941002,2575.9,2575.3,2.82504214]
[1647039383929,5.51941002,2575.9,2575.6,0.00418301]
[1647039384727,5.51941002,2575.9,2575.3,1.82504214]
[1647039384929,5.51941002,2575.9,2575.6,0.00418301]
[1647039386084,5.51941002,2575.9,2575.3,1.82504214]
[1647039386276,5.51941002,2575.9,2575.3,2.79585534]
[1647039386477,5.51941002,2575.9,2575.6,0.00418301]
[1647039387184,5.51941002,2575.9,2575.3,2.82504214]
[1647039387380,5.51941002,2575.9,2575.6,0.00420902]
[1647039389586,5.51941002,2575.9,2575.3,1.82504214]
[1647039390031,5.51941002,2575.9,2575.6,0.00420902]
[1647039391036,5.51941002,2575.9,2575.3,3.76640714]
[1647039391237,5.51941002,2575.9,2575.6,0.00404094]
[1647039392039,5.51941002,2575.9,2575.5,0.9707374]
[1647039392236,5.51941002,2575.9,2575.6,0.00404094]
[1647039392438,5.51941002,2575.9,2575.6,1.59298356]
[1647039392737,5.51941002,2575.9,2575.6,0.00404094]
[1647039392939,5.51941002,2575.9,2575.6,1.59298356]
[1647039393139,5.51941002,2575.9,2575.6,1.58894262]
[1647039393585,5.51941002,2575.9,2575.6,1.59298356]
[1647039393971,5.51941002,2575.9,2575.7,2.55959599]
[1647039394173,5.51941002,2575.9,2575.7,0.9706347]
[1647039394372,5.51941002,2575.9,2575.7,1.9706347]
[1647039394574,5.51941002,2575.9,2575.7,0.97468896]
[1647039395573,5.51941002,2575.9,2575.7,0.9706347]
[1647039395774,5.51941002,2575.9,2575.7,0.97468896]
[1647039396775,5.51941002,2575.9,2575.7,0.9706347]
[1647039397179,5.51941002,2575.9,2575.7,0.97468896]
[1647039398026,5.51941002,2575.9,2575.7,0.9706347]
[1647039398427,5.51941002,2575.9,2575.7,0.97469785]
[1647039399327,5.51941002,2575.9,2575.8,1.58889956]
[1647039399733,5.51941002,2575.9,2575.7,1.97469785]
[1647039400030,5.51941002,2575.9,2575.7,0.97469785]
[1647039400430,3.67285819,2575.8,2575.7,0.97469785]
[1647039400630,3.67285819,2575.8,2575.7,0.9706347]
[1647039400830,3.67285819,2575.8,2575.7,2.55958758]
[1647039401080,3.67285819,2575.8,2575.7,2.56365073]
[1647039401382,3.67285819,2575.8,2575.7,3.56365073]
[1647039401580,3.67285819,2575.8,2575.7,2.55958758]
[1647039401780,3.67285819,2575.8,2575.7,3.55958758]
[1647039407632,1.97808899,2575.8,2575.7,3.55958758]
[1647039408231,1.84458642,2575.9,2575.7,3.55958758]
[1647039408432,1.84458642,2575.9,2575.8,1.58895288]
[1647039409377,1.84458642,2575.9,2575.7,1.00424743]
[1647039409577,1.84458642,2575.9,2575.7,0.00424743]
[1647039410381,1.84458642,2575.9,2575.3,1.74744917]
[1647039410577,1.84458642,2575.9,2575.4,1.58894929]
[1647039411082,2.81550642,2575.9,2575.4,1.58894929]
[1647039411279,1.84458642,2575.9,2575.4,1.58894929]
[1647039411479,1.9418,2575.8,2575.4,1.58894929]
[1647039412832,1.99064139,2575.8,2575.5,0.00465969]
[1647039413030,2.96154139,2575.8,2575.5,0.00465969]
[1647039413629,2.96154139,2575.8,2575.2,0.11681509]
[1647039413830,2.96154139,2575.8,2575.3,1.58905305]
[1647039414030,2.96154139,2575.8,2575.5,0.00465965]
[1647039414431,0.06000768,2575.7,2575.5,0.00465965]
[1647039415232,0.06085337,2575.5,2575.1,0.5821443]
[1647039415435,0.06085337,2575.5,2575.2,1.58910209]
[1647039416575,0.06085337,2575.5,2575.2,1.5934063]
[1647039416775,0.06085337,2575.5,2575.3,1.58910209]
[1647039417175,1.03180337,2575.5,2575.3,1.58910209]
[1647039417578,1.03180337,2575.5,2575.4,1.58910209]
[1647039417980,1.03180337,2575.5,2575.3,0.00406241]
[1647039418380,1.03180337,2575.5,2575.2,1.58910209]
[1647039418980,1.03180337,2575.5,2575.3,0.00406241]
[1647039419581,1.03180337,2575.5,2575.2,1.58910209]
[1647039419827,1.03180337,2575.5,2575.3,0.00441805]
[1647039420028,1.03180337,2575.5,2575.4,1.58910209]
[1647039421234,1.03180337,2575.5,2575.2,1.58910209]
[1647039421433,1.03180337,2575.5,2575.3,0.00465979]
[1647039421632,1.03180337,2575.5,2575.4,1.58910209]
[1647039421833,0.97095,2575.5,2575.4,1.58910209]
[1647039422033,0.97095,2575.5,2575.3,0.00465979]
[1647039422034,0.05510944,2575.4,2575.3,0.00465979]
[1647039422233,0.05510944,2575.4,2574.6,1.1983]
[1647039422436,0.97113,2574.9,2574.7,1.58931766]
[1647039422835,1.99314295,2575.0,2574.8,1.58931766]
[1647039423035,1.99314295,2575.0,2574.9,1.58931766]
[1647039423238,1.99314295,2575.0,2574.4,1.58931766]
[1647039423435,0.97122,2574.9,2574.4,1.58931766]
[1647039423679,0.97122,2574.9,2574.8,0.00457325]
[1647039423880,1.99314295,2575.0,2574.8,0.00457325]
[1647039424081,1.99314295,2575.0,2574.9,1.58931766]
[1647039424480,2.91347,2575.0,2574.9,1.58931766]
[1647039424682,3.88468,2575.0,2574.8,0.00443343]
[1647039424881,3.88468,2575.0,2574.9,1.58931766]
[1647039425786,3.88468,2575.0,2574.3,1.9711512]
[1647039425983,0.97114,2574.9,2574.4,1.58945391]
[1647039426182,3.88468,2575.0,2574.8,0.0044334]
[1647039426982,3.88468,2575.0,2574.4,0.01773624]
[1647039427182,0.97114,2574.9,2574.5,1.58945294]
[1647039427438,0.97114,2574.9,2574.6,1.58945294]
[1647039427638,0.97114,2574.9,2574.7,1.58945294]
[1647039427839,0.97114,2574.9,2574.3,0.9711512]
[1647039428038,0.97114,2574.9,2574.4,1.58945538]
[1647039428638,1.94235,2574.9,2574.7,0.00449378]
[1647039429240,1.94235,2574.9,2574.0,2.79978959]
[1647039429442,0.97139,2574.8,2574.1,1.58951945]
[1647039429640,0.97136,2574.6,2574.3,0.0179778]
[1647039429840,1.94272,2574.6,2574.4,1.58951945]
[1647039430443,0.97134,2574.6,2574.4,1.58951945]
[1647039430841,0.97139,2574.8,2574.6,0.72409875]
[1647039431579,0.97139,2574.8,2574.7,1.58944769]
[1647039432179,0.97139,2574.8,2574.6,0.72846178]
[1647039432784,0.97139,2574.8,2574.6,0.72409875]
[1647039433084,1.94267,2574.8,2574.6,0.72409875]
[1647039433283,1.94267,2574.8,2574.6,0.72846178]
[1647039434085,1.94267,2574.8,2574.6,0.72409875]
[1647039434285,1.94267,2574.8,2574.6,0.72846178]
[1647039434829,1.94278,2574.6,2574.2,0.01745475]
[1647039435029,2.91417,2574.6,2574.3,1.58955167]
[1647039435230,1.94277,2574.5,2574.3,1.58955167]
[1647039435430,0.06158144,2574.3,2573.7,16.41817675]
[1647039435630,0.06158144,2574.3,2573.8,1.58953153]
[1647039436429,0.97137,2574.2,2573.8,1.58953153]
[1647039438782,0.97137,2574.2,2573.8,2.56087163]
[1647039438979,0.97137,2574.2,2573.9,1.58953153]
[1647039439381,0.97137,2574.2,2573.9,1.59417961]
[1647039439581,0.97137,2574.2,2574.0,1.58953153]
[1647039440281,0.97137,2574.2,2574.0,1.59417954]
[1647039440482,0.97137,2574.2,2574.1,1.58953153]
[1647039441982,0.97137,2574.2,2574.1,1.6676577]
[1647039442435,0.06158144,2574.3,2574.1,1.6676577]
[1647039442634,0.06158144,2574.3,2574.2,1.58953153]
[1647039443837,0.06158144,2574.3,2574.2,1.66765439]
[1647039451037,1.943902,2574.5,2574.4,0.06268366]
[1647039451238,1.943902,2574.5,2574.4,1.65221519]
[1647039452837,2.02338083,2574.5,2574.4,1.65221519]
[1647039456086,0.08061083,2574.5,2574.4,1.65221519]
[1647039459840,0.08137417,2574.5,2574.4,1.65221519]
[1647039460842,0.08137417,2574.5,2574.4,6.46932427]
[1647039461084,0.08137417,2574.5,2574.4,11.36454959]
[1647039464292,0.08137417,2574.5,2574.4,12.36454959]
[1647039464494,1.94207,2574.9,2574.5,0.78662118]
[1647039464700,1.94207,2574.9,2574.8,14.93384681]
[1647039464701,0.00189534,2574.9,2574.8,14.93384681]
[1647039464936,0.00189534,2574.9,2574.8,20.18949176]
[1647039464937,9.534e-05,2574.9,2574.8,20.18949176]
[1647039465133,0.97062,2575.8,2574.8,21.48949176]
[1647039465333,0.95181084,2576.0,2575.7,11.85]
[1647039465538,0.00405434,2576.0,2575.7,18.35]
[1647039465736,0.9477565,2576.3,2575.8,11.85]
[1647039465940,1.94077,2576.7,2575.8,11.85]
[1647039465941,0.00405608,2576.0,2575.8,11.85]
[1647039466136,0.00405608,2576.0,2575.8,19.40490691]
[1647039466339,0.00405608,2576.0,2575.8,7.55490691]
[1647039466537,1.42575251,2576.8,2575.8,7.55490691]
[1647039466538,0.97051,2576.2,2575.8,7.55490691]
[1647039466738,0.97051,2576.2,2576.0,4.7888762]
[1647039466938,0.97051,2576.2,2576.1,0.0780666]
[1647039467340,1.94119,2576.3,2576.1,3.8964328]
[1647039467540,1.94119,2576.3,2576.2,0.0780633]
[1647039468140,0.00423824,2576.3,2576.2,0.0780633]
[1647039468889,1.94119,2576.5,2576.2,0.0780633]
[1647039469289,0.00424091,2576.4,2576.2,0.0780633]
[1647039470389,1.94119,2576.5,2576.3,0.0727018]
[1647039470589,0.00424088,2576.4,2576.3,0.0727018]
[1647039471394,1.94119,2576.5,2576.3,0.0727018]
[1647039471593,1.94523689,2576.5,2576.3,0.0727018]
[1647039472443,1.94119,2576.5,2576.3,0.0727018]
[1647039472843,1.94528885,2576.5,2576.3,0.0727018]
[1647039473646,1.94119,2576.5,2576.3,0.0727018]
[1647039474048,1.94528885,2576.5,2576.3,0.0727018]
[1647039474650,2.91595885,2576.5,2576.3,0.0727018]
[1647039475049,2.91186,2576.5,2576.3,0.0727018]
[1647039475650,2.91628609,2576.5,2576.3,0.0727018]
[1647039476282,2.91186,2576.5,2576.3,0.0727018]
[1647039476483,0.97067,2576.4,2575.8,0.28069038]
[1647039476882,0.97068,2576.3,2575.8,0.28069038]
[1647039477387,0.97068,2576.3,2575.8,0.19523076]
[1647039477786,0.97518792,2576.2,2575.8,0.19523076]
[1647039478587,0.97068,2576.2,2575.8,0.19523076]
[1647039478787,0.00425057,2576.1,2575.8,0.08669038]
[1647039478988,0.97494057,2576.1,2575.8,0.08669038]
[1647039480034,0.97069,2576.1,2575.8,0.08669038]
[1647039480234,0.97479815,2576.1,2575.8,0.08669038]
[1647039481033,0.97069,2576.1,2575.8,0.08669038]
[1647039481237,0.97479815,2576.1,2575.8,0.08669038]
[1647039482134,0.97069,2576.1,2575.8,0.08669038]
[1647039482334,0.97473766,2576.1,2575.8,0.08669038]
[1647039483338,0.97069,2576.1,2575.8,0.08669038]
[1647039483784,0.97474256,2576.1,2575.8,0.08669038]
[1647039484684,0.07944576,2576.0,2575.8,0.08669038]
[1647039486186,0.08350561,2576.0,2575.8,0.08669038]
[1647039486986,0.07944576,2576.0,2575.8,0.08669038]
[1647039487187,0.08350975,2576.0,2575.8,0.08669038]
[1647039487636,0.08350975,2576.0,2575.3,2.4413341]
[1647039487836,1.01229727,2575.9,2575.3,0.5]
[1647039488037,0.13156679,2575.8,2575.3,0.5]
[1647039488238,0.07944576,2575.7,2575.3,0.5]
[1647039488441,0.12386798,2575.7,2574.8,0.08595771]
[1647039488638,0.97107,2575.2,2574.8,0.08595771]
[1647039488838,1.94215,2575.2,2574.8,0.08595771]
[1647039489040,0.97107,2575.0,2574.6,0.1941]
[1647039489238,0.97107,2575.0,2574.7,1.55330254]
[1647039489939,0.97107,2575.0,2574.5,0.27620673]
[1647039490138,0.97106,2574.9,2574.6,1.55354821]
[1647039490341,0.97106,2574.9,2574.7,0.08518984]
[1647039490539,0.97106,2574.9,2574.5,0.194]
[1647039490737,0.97106,2574.9,2574.5,0.2755067]
[1647039491196,0.97106,2574.9,2574.7,0.08770705]
[1647039491396,0.97106,2574.9,2574.5,0.09283824]
[1647039491793,0.97106,2574.9,2574.5,0.08878142]
[1647039491993,0.97106,2574.9,2574.5,0.09283829]
[1647039493000,0.97106,2574.9,2574.6,1.54400597]
[1647039493199,0.97106,2574.9,2574.7,1.63411332]
[1647039493398,0.97106,2574.9,2574.8,1.54400597]
[1647039495630,0.97107,2575.0,2574.8,1.54400597]
[1647039496632,1.94211,2574.9,2574.7,0.09010735]
[1647039497233,1.94211,2574.9,2574.8,1.52524308]
[1647039497437,0.24671501,2574.9,2574.8,1.52524308]
[1647039498596,0.24671501,2574.9,2574.5,0.00405794]
[1647039498788,0.24671501,2574.9,2574.5,1.49415379]
[1647039499187,0.24671501,2574.9,2574.5,1.49009585]
[1647039500792,0.13369592,2574.8,2574.4,0.06268366]
[1647039500991,1.94269,2574.6,2574.4,0.06268366]
[1647039501394,2.91403,2574.6,2574.4,0.06268366]
[1647039501792,2.91403,2574.6,2574.4,0.06701222]
[1647039502436,3.78835949,2574.6,2574.4,0.06701222]
[1647039502642,0.09221767,2574.5,2574.4,0.06701222]
[1647039503035,0.09221767,2574.5,2574.4,0.06268366]
[1647039503235,0.09221767,2574.5,2574.4,0.06701222]
[1647039503835,0.09221767,2574.5,2574.4,0.06268366]
[1647039504841,0.7,2574.4,2573.9,7.34]
[1647039505048,0.97141,2574.2,2573.9,7.34]
[1647039505239,2.65023209,2574.1,2573.2,7.34]
[1647039505443,0.9717997,2573.8,2573.0,0.5]
[1647039505641,0.9717997,2573.8,2573.1,1.4833003]
[1647039505642,0.53533058,2573.7,2573.1,1.4833003]
[1647039505838,0.86334183,2573.6,2572.3,0.71374664]
[1647039506096,0.86334183,2573.6,2572.4,1.47217059]
[1647039506097,0.62575796,2573.5,2572.4,1.47217059]
[1647039506296,0.62575796,2573.5,2572.0,1.47217059]
[1647039506297,0.05902072,2573.2,2572.0,1.47217059]
[1647039506492,0.56321767,2573.1,2573.0,0.5]
[1647039506797,0.56321767,2573.1,2571.5,0.06041384]
[1647039506798,0.06293026,2573.0,2571.5,0.06041384]
[1647039506993,0.06293026,2573.0,2571.6,1.32971554]
[1647039506994,0.97228,2572.8,2571.6,1.32971554]
[1647039507190,0.97228,2572.8,2571.2,0.785843]
[1647039507191,0.0571667,2572.7,2571.7,1.32971554]
[1647039507392,1.44328,2572.8,2570.8,2.66767619]
[1647039507393,0.97236,2571.8,2570.8,2.66767619]
[1647039507592,0.05031612,2571.7,2570.9,1.38819798]
[1647039507791,0.05031612,2571.7,2571.0,1.32601075]
[1647039507992,0.97249,2571.5,2571.0,1.32601075]
[1647039508192,0.97249,2571.5,2571.1,1.32601075]
[1647039508393,0.05390269,2571.4,2571.2,1.32601075]
[1647039508593,0.05390269,2571.4,2570.7,1.32760349]
[1647039508794,0.05390269,2571.4,2571.3,1.32601075]
[1647039508992,0.05390269,2571.4,2570.8,0.04035807]
[1647039509192,0.05390269,2571.4,2570.9,1.32601075]
[1647039509397,1.02631269,2571.4,2570.9,1.32601075]
[1647039510241,0.06093941,2571.2,2570.9,1.32601075]
[1647039510440,0.97226,2571.6,2571.0,3.5]
[1647039510638,0.97226,2571.6,2570.9,0.9722815]
[1647039510837,0.97226,2571.6,2571.0,1.22139803]
[1647039511449,0.97225,2571.5,2571.1,0.00461243]
[1647039511640,0.97225,2571.5,2571.2,1.20968908]
[1647039511839,0.97225,2571.5,2571.1,0.00461243]
[1647039512240,0.97225,2571.5,2570.9,1.9444915]
[1647039512645,0.97225,2571.5,2570.9,2.0064078]
[1647039512847,0.97225,2571.5,2571.2,0.97647407]
[1647039513684,0.97225,2571.5,2571.2,0.9722179]
[1647039513883,0.97225,2571.5,2571.2,0.97647404]
[1647039514696,0.97225,2571.5,2569.7,0.0028638]
[1647039514697,1.165,2571.2,2569.7,0.0028638]
[1647039514889,0.01204351,2570.4,2569.7,1.07701692]
[1647039515087,1.17704351,2570.4,2569.7,0.0028638]
[1647039515293,1.165,2570.2,2569.7,6.38e-05]
[1647039515500,2.0202,2569.8,2569.7,6.38e-05]
[1647039515686,2.55331072,2569.8,2569.7,6.38e-05]
[1647039515885,2.55331072,2569.8,2569.2,0.0026919]
[1647039515886,0.8,2569.7,2569.2,0.0026919]
[1647039516085,1.69538123,2569.6,2569.2,0.0026919]
[1647039516288,1.165,2569.4,2569.2,0.0026919]
[1647039516486,0.06222179,2569.3,2569.2,0.0026919]
[1647039517543,0.05372048,2569.3,2569.2,0.0026919]
[1647039518343,3.55372048,2569.3,2569.2,0.0026919]
[1647039519345,3.55372048,2569.3,2568.7,0.0249771]
[1647039519346,1.7736,2569.2,2568.7,0.0249771]
[1647039519548,3.971,2569.1,2567.7,0.12358815]
[1647039519745,3.971,2569.1,2567.7,0.013755]
[1647039519746,1.94722,2568.9,2567.7,0.013755]
[1647039519949,0.0500527,2568.7,2567.7,0.013755]
[1647039520349,0.5210527,2568.7,2567.7,0.013755]
[1647039520547,0.8,2568.4,2567.2,0.01431918]
[1647039520746,1.95983447,2568.2,2567.2,0.03101478]
[1647039520946,3.55459573,2568.1,2567.2,0.03101478]
[1647039521187,0.05793769,2568.0,2567.2,0.03101478]
[1647039521389,0.97393,2567.8,2566.6,2.96209568]
[1647039521589,0.97393,2567.8,2566.5,0.1]
[1647039521590,0.97389,2567.5,2566.5,0.1]
[1647039521788,0.06427683,2567.6,2567.5,0.1165562]
[1647039522187,3.53790432,2568.2,2567.5,0.1165562]
[1647039522390,0.05568669,2568.1,2567.5,0.1165562]
[1647039522790,0.97367,2568.1,2567.5,0.1165562]
[1647039522996,3.5,2568.5,2567.5,0.1165562]
[1647039523190,0.13616535,2568.6,2567.5,0.1165562]
[1647039523390,0.19960274,2568.6,2567.5,0.1165562]